fUST/lending_fUST_20250815
["ID","MTS","AMOUNT","RATE_DAILY","PERIOD"]
[379311256,1755251434902,-500.0,0.00019898,2]
[379311257,1755251434912,-782.59575624,0.00019898,2]
[379311258,1755251434921,-500.0,0.00019898,2]
[379311259,1755251434931,-782.59575624,0.00019898,2]
[379311260,1755251434941,-500.0,0.00019898,2]
[379311261,1755251434951,-782.59575624,0.00019898,2]
[379311262,1755251434961,-500.0,0.00019898,2]
[379311263,1755251434971,-782.59575624,0.00019898,2]
[379311264,1755251434980,-782.59575624,0.00019898,2]
[379311265,1755251434990,-500.0,0.00019898,2]
[379311266,1755251434999,-782.59575624,0.00019898,2]
[379311267,1755251435010,-500.0,0.00019898,2]
[379311268,1755251435020,-782.59575624,0.00019898,2]
[379311269,1755251435030,-500.0,0.00019898,2]
[379311270,1755251435040,-782.59575624,0.00019898,2]
[379311271,1755251435050,-500.0,0.00019898,2]
[379311272,1755251435060,-782.59575624,0.00019898,2]
[379311273,1755251435070,-500.0,0.00019898,2]
[379311274,1755251435080,-782.59575624,0.00019898,2]
[379311275,1755251435090,-500.0,0.00019898,2]
[379311276,1755251435100,-782.59575624,0.00019898,2]
[379311277,1755251435110,-500.0,0.00019898,2]
[379311278,1755251435119,-500.0,0.00019898,2]
[379311279,1755251435129,-782.59575624,0.00019898,2]
[379311280,1755251435139,-782.59575624,0.00019898,2]
[379311281,1755251435149,-500.0,0.00019898,2]
[379311282,1755251435159,-782.59575624,0.00019898,2]
[379311283,1755251435168,-500.0,0.00019898,2]
[379311284,1755251435178,-782.59575624,0.00019898,2]
[379311285,1755251435188,-500.0,0.00019898,2]
[379311286,1755251435198,-782.59575624,0.00019898,2]
[379311287,1755251435207,-500.0,0.00019898,2]
[379311288,1755251435217,-782.59575624,0.00019898,2]
[379311289,1755251435227,-353.13467567,0.00019898,2]
[379311290,1755251435237,-782.59575624,0.00019898,2]
[379311291,1755251435246,-782.59575624,0.00019898,2]
[379311292,1755251435256,-500.0,0.00019898,2]
[379311293,1755251435266,-500.0,0.00019898,2]
[379311294,1755251435275,-500.0,0.00019898,2]
[379311295,1755251435285,-500.0,0.00019898,2]
[379311296,1755251435295,-500.0,0.00019898,2]
[379311297,1755251435304,-500.0,0.00019898,2]
[379311298,1755251435314,-500.0,0.00019898,2]
[379311299,1755251435323,-500.0,0.00019898,2]
[379311300,1755251435332,-500.0,0.00019898,2]
[379311301,1755251435342,-500.0,0.00019898,2]
[379311302,1755251435352,-500.0,0.00019898,2]
[379311303,1755251435362,-500.0,0.00019898,2]
[379311304,1755251435372,-500.0,0.00019898,2]
[379311305,1755251435381,-500.0,0.00019898,2]
[379311306,1755251435390,-500.0,0.00019898,2]
[379311307,1755251435399,-500.0,0.00019898,2]
[379311308,1755251435408,-500.0,0.00019898,2]
[379311309,1755251435418,-500.0,0.00019898,2]
[379311310,1755251435428,-500.0,0.00019898,2]
[379311311,1755251435438,-500.0,0.00019898,2]
[379311312,1755251435448,-782.59575613,0.00019898,2]
[379311313,1755251435458,-500.0,0.00019898,2]
[379311314,1755251435467,-400.0,0.00019898,2]
[379311315,1755251435477,-500.0,0.00019898,2]
[379311316,1755251435487,-500.0,0.00019898,2]
[379311317,1755251435496,-500.0,0.00019898,2]
[379311318,1755251435506,-500.0,0.00019898,2]
[379311319,1755251435516,-500.0,0.00019898,2]
[379311320,1755251435526,-500.0,0.00019898,2]
[379311321,1755251435536,-500.0,0.00019898,2]
[379311322,1755251435546,-500.0,0.00019899,2]
[379311323,1755251435555,-460.0,0.00019899,2]
[379311324,1755251435565,-571.62,0.00019899,2]
[379311325,1755251435574,-467.55597581,0.00019899,2]
[379311326,1755251435584,-460.0,0.00019899,2]
[379311327,1755251435594,-460.0,0.00019899,2]
[379311328,1755251435603,-14930.37073888,0.000199,2]
[379311329,1755251435613,-460.0,0.00019937,2]
[379311330,1755251435623,-460.0,0.00019937,2]
[379311331,1755251435632,-500.0,0.00019973,2]
[379311332,1755251435641,-201.32817266,0.00019986,2]
[379311333,1755251435650,-501.63434964,0.00019986,2]
[379311334,1755251435660,-460.0,0.00019998,2]
[379311335,1755251435669,-4999.99999901,0.0002,2]
[379311336,1755251435678,-394.67379652,0.00020173,2]
[379311337,1755251435688,-460.0,0.00020173,2]
[379311338,1755251435697,-334.40026266,0.00020173,2]
[379311339,1755251435707,-172.02,0.00020211,2]
[379311340,1755251435716,-460.0,0.00020211,2]
[379311341,1755251435726,-460.0,0.00020272,2]
[379311342,1755251435735,-460.0,0.00020296,2]
[379311343,1755251435744,-218.50903717,0.0002034,2]
[379311344,1755251435755,-500.0,0.00020386,2]
[379311345,1755251435765,-151.0,0.00020415,2]
[379311346,1755251435774,-151.0,0.00020415,2]
[379311347,1755251435784,-467.52659087,0.00020415,2]
[379311348,1755251435795,-460.0,0.00020415,2]
[379311349,1755251435804,-151.0,0.00020416,2]
[379311350,1755251435814,-151.0,0.00020416,2]
[379311351,1755251435823,-151.0,0.00020416,2]
[379311352,1755251435834,-14930.37073862,0.00020416,2]
[379311353,1755251435843,-297.77908351,0.00020421,2]
[379311354,1755251435854,-1000.0,0.00020421,2]
[379311355,1755251435863,-1000.0,0.00020421,2]
[379311356,1755251435872,-460.0,0.00020447,2]
[379311357,1755251435882,-460.0,0.00020485,2]
[379311358,1755251435891,-460.0,0.00020546,2]
[379311359,1755251435900,-156.87922233,0.0002057,2]
[379311360,1755251435910,-181.95,0.00020689,2]
[379311361,1755251435920,-460.0,0.00020721,2]
[379311362,1755251435929,-460.0,0.00020759,2]
[379311363,1755251435938,-267.01,0.0002082,2]
[379311364,1755251435948,-218.50903717,0.00020883,2]
[379311365,1755251435958,-954.0,0.00020896,2]
[379311366,1755251435969,-210.846856,0.00020932,2]
[379311367,1755251435978,-154.861789,0.00020932,2]
[379311368,1755251435988,-14930.37073862,0.00020932,2]
[379311369,1755251435997,-954.0,0.00020951,2]
[379311370,1755251436007,-1500.0,0.00020968,2]
[379311371,1755251436017,-1500.0,0.00020968,2]
[379311372,1755251436027,-303.65626775,0.00020974,2]
[379311373,1755251436037,-664.75031037,0.00020978,2]
[379311374,1755251436046,-460.0,0.00020995,2]
[379311375,1755251436056,-546.0,0.00020995,2]
[379311376,1755251436066,-198.0,0.00020995,2]
[379311377,1755251436076,-151.0,0.00020995,2]
[379311378,1755251436086,-13766.96959296,0.00021,2]
[379311379,1755251436095,-460.0,0.00021033,2]
[379311380,1755251436105,-954.0,0.0002112,2]
[379311381,1755251436115,-954.0,0.0002114,2]
[379311382,1755251436125,-420.0,0.00021198,2]
[379311383,1755251436135,-152.90624974,0.00021237,2]
[379311384,1755251436144,-1592.16,0.00021258,3]
[379311385,1755251436154,-796.08,0.00021258,3]
[379311386,1755251436163,-398.04,0.00021258,3]
[379311387,1755251436172,-546.0,0.00021269,2]
[379311388,1755251436184,-151.0,0.00021269,2]
[379311389,1755251436194,-460.0,0.00021269,2]
[379311390,1755251436205,-160.0,0.00021276,2]
[379311391,1755251436214,-954.0,0.00021278,2]
[379311392,1755251436224,-18273.66182756,0.00021287,2]
[379311393,1755251436235,-460.0,0.00021307,2]
[379311394,1755251436245,-200.0,0.00021366,20]
[379311395,1755251436255,-200.0,0.00021366,20]
[379311396,1755251436265,-200.0,0.00021366,20]
[379311397,1755251436275,-200.0,0.00021366,20]
[379311398,1755251436285,-200.0,0.00021366,20]
[379311399,1755251436295,-200.0,0.00021366,20]
[379311400,1755251436304,-200.0,0.00021366,20]
[379311401,1755251436314,-280.0,0.00021366,20]
[379311402,1755251436323,-2106.7,0.00021387,3]
[379311403,1755251436334,-168.0,0.00021407,2]
[379311404,1755251436343,-954.0,0.00021421,2]
[379311405,1755251436353,-218.50903717,0.00021425,2]
[379311406,1755251436363,-14930.37073862,0.00021448,2]
[379311407,1755251436373,-500.0,0.00021482,2]
[379311408,1755251436383,-168.0,0.00021483,2]
[379311409,1755251436394,-601.0,0.00021513,2]
[379311410,1755251436404,-2000.0,0.00021516,2]
[379311411,1755251436413,-2000.0,0.00021516,2]
[379311412,1755251436425,-168.0,0.00021524,2]
[379311413,1755251436435,-546.0,0.00021543,2]
[379311414,1755251436445,-151.0,0.00021543,2]
[379311415,1755251436455,-460.0,0.00021543,2]
[379311416,1755251436465,-348.0,0.00021547,2]
[379311417,1755251436474,-235.9,0.00021565,3]
[379311418,1755251436484,-460.0,0.00021581,2]
[379311419,1755251436495,-168.0,0.00021657,2]
[379311420,1755251436505,-290.09638263,0.00021659,2]
[379311421,1755251436516,-168.0,0.00021681,2]
[379311422,1755251436526,-348.0,0.00021714,2]
[379311423,1755251436536,-601.0,0.00021744,2]
[379311424,1755251436546,-235.9,0.00021749,3]
[379311425,1755251436556,-348.0,0.00021803,2]
[379311426,1755251436566,-546.0,0.00021817,2]
[379311427,1755251436577,-162.28384475,0.00021817,2]
[379311428,1755251436586,-460.0,0.00021817,2]
[379311429,1755251436595,-500.0,0.0002182,2]
[379311430,1755251436605,-500.0,0.0002182,2]
[379311431,1755251436615,-500.0,0.0002182,2]
[379311432,1755251436624,-500.0,0.0002182,2]
[379311433,1755251436634,-260.0,0.00021824,2]
[379311434,1755251436643,-460.0,0.00021855,2]
[379311435,1755251436654,-558.01654924,0.00021864,2]
[379311436,1755251436663,-171.793,0.00021917,2]
[379311437,1755251436673,-235.9,0.00021932,3]
[379311438,1755251436683,-12775.1334156,0.00021953,2]
[379311439,1755251436693,-14930.37073862,0.00021965,2]
[379311440,1755251436703,-218.50903717,0.00021967,2]
[379311441,1755251436713,-403.25,0.00021971,2]
[379311442,1755251436723,-218.84,0.00022,2]
[379311443,1755251436732,-196.0,0.00022,2]
[379311444,1755251436744,-168.0,0.00022041,2]
[379311445,1755251436754,-2500.0,0.00022064,2]
[379311446,1755251436765,-2500.0,0.00022064,2]
[379311447,1755251436775,-500.0,0.00022067,2]
[379311448,1755251436784,-158.57994846,0.00022067,2]
[379311449,1755251436902,-206.17399241,0.00022067,2]
[379311450,1755251436912,-500.0,0.00022067,2]
[379311451,1755251436922,-500.0,0.00022067,2]
[379311452,1755251436931,-500.0,0.00022067,2]
[379311453,1755251436941,-500.54007216,0.00022067,2]
[379311454,1755251436951,-500.0,0.00022067,2]
[379311455,1755251436960,-500.0,0.00022067,2]
[379311456,1755251436970,-500.0,0.00022067,2]
[379311457,1755251436980,-500.0,0.00022067,2]
[379311458,1755251436989,-500.0,0.00022067,2]
[379311459,1755251436999,-500.0,0.00022067,2]
[379311460,1755251437009,-500.0,0.00022067,2]
[379311461,1755251437018,-509.43701415,0.00022067,2]
[379311462,1755251437028,-500.92954421,0.00022067,2]
[379311463,1755251437037,-500.0,0.00022067,2]
[379311464,1755251437047,-500.0,0.00022067,2]
[379311465,1755251437058,-500.0,0.00022067,2]
[379311466,1755251437069,-501.07241622,0.00022067,2]
[379311467,1755251437078,-500.0,0.00022067,2]
[379311468,1755251437088,-500.0,0.00022067,2]
[379311469,1755251437098,-500.0,0.00022067,2]
[379311470,1755251437109,-500.0,0.00022067,2]
[379311471,1755251437119,-500.0,0.00022067,2]
[379311472,1755251437129,-500.0,0.00022067,2]
[379311473,1755251437139,-500.0,0.00022067,2]
[379311474,1755251437149,-500.78890042,0.00022067,2]
[379311475,1755251437159,-500.0,0.00022067,2]
[379311476,1755251437168,-500.0,0.00022067,2]
[379311477,1755251437177,-501.30889282,0.00022067,2]
[379311478,1755251437187,-972.0,0.00022085,2]
[379311479,1755251437196,-408.0,0.00022085,2]
[379311480,1755251437206,-2152.0,0.00022085,2]
[379311481,1755251437215,-636.0,0.00022085,2]
[379311482,1755251437225,-546.0,0.00022091,2]
[379311483,1755251437235,-460.0,0.00022091,2]
[379311484,1755251437245,-235.9,0.00022116,3]
[379311485,1755251437254,-460.0,0.00022129,2]
[379311486,1755251437264,-500.0,0.00022157,2]
[379311487,1755251437274,-664.75031037,0.00022193,2]
[379311488,1755251437284,-235.9,0.00022299,3]
[379311489,1755251437294,-645.0,0.000223,2]
[379311490,1755251437303,-546.0,0.00022365,2]
[379311491,1755251437313,-363.42658277,0.00022365,2]
[379311492,1755251437322,-1000.0,0.00022368,2]
[379311493,1755251437332,-501.46149829,0.00022368,2]
[379311494,1755251437342,-1000.0,0.00022368,2]
[379311495,1755251437352,-1000.0,0.00022368,2]
[379311496,1755251437361,-360.0,0.00022372,2]
[379311497,1755251437371,-601.0,0.00022401,2]
[379311498,1755251437381,-460.0,0.00022403,2]
[379311499,1755251437391,-500.0,0.00022411,2]
[379311500,1755251437400,-500.0,0.00022411,2]
[379311501,1755251437411,-500.0,0.00022411,2]
[379311502,1755251437420,-500.0,0.00022411,2]
[379311503,1755251437430,-14930.37073862,0.00022481,2]
[379311504,1755251437440,-235.9,0.00022483,3]
[379311505,1755251437450,-500.0,0.00022578,2]
[379311506,1755251437460,-3000.0,0.00022612,2]
[379311507,1755251437470,-3000.0,0.00022612,2]
[379311508,1755251437480,-501.94900279,0.00022615,2]
[379311509,1755251437490,-719.12395559,0.00022615,2]
[379311510,1755251437500,-1000.0,0.00022615,2]
[379311511,1755251437509,-1017.70336959,0.00022615,2]
[379311512,1755251437519,-500.0,0.00022615,2]
[379311513,1755251437529,-500.0,0.00022615,2]
[379311514,1755251437538,-1000.0,0.00022615,2]
[379311515,1755251437548,-500.0,0.00022615,2]
[379311516,1755251437557,-594.04779608,0.00022615,2]
[379311517,1755251437567,-1000.0,0.00022615,2]
[379311518,1755251437576,-500.0,0.00022615,2]
[379311519,1755251437586,-500.0,0.00022615,2]
[379311520,1755251437596,-501.01715711,0.00022615,2]
[379311521,1755251437605,-666.32151536,0.00022615,2]
[379311522,1755251437614,-500.0,0.00022615,2]
[379311523,1755251437623,-1000.0,0.00022615,2]
[379311524,1755251437632,-500.0,0.00022615,2]
[379311525,1755251437641,-1000.0,0.00022615,2]
[379311526,1755251437650,-500.9478934,0.00022615,2]
[379311527,1755251437659,-1000.0,0.00022615,2]
[379311528,1755251437669,-501.88008736,0.00022615,2]
[379311529,1755251437678,-1046.90934465,0.00022615,2]
[379311530,1755251437688,-501.74183705,0.00022615,2]
[379311531,1755251437699,-546.0,0.00022639,2]
[379311532,1755251437708,-235.9,0.00022666,3]
[379311533,1755251437718,-460.0,0.00022677,2]
[379311535,1755251437729,-601.0,0.00022686,2]
[379311537,1755251437739,-601.0,0.00022699,2]
[379311539,1755251437749,-207.0,0.000227,2]
[379311541,1755251437763,-500.0,0.00022705,2]
[379311543,1755251437773,-500.0,0.00022705,2]
[379311545,1755251437783,-500.0,0.00022705,2]
[379311547,1755251437792,-150.0,0.00022705,2]
[379311549,1755251437802,-500.0,0.00022705,2]
[379311551,1755251437812,-500.0,0.00022705,2]
[379311553,1755251437821,-500.0,0.00022705,2]
[379311555,1755251437832,-501.57858725,0.00022705,2]
[379311557,1755251437841,-601.0,0.00022729,2]
[379311559,1755251437851,-3234.009,0.00022795,2]
[379311561,1755251437860,-56311.96389013,0.000228,2]
[379311563,1755251437870,-1555.931171,0.000228,2]
[379311565,1755251437879,-190.878435,0.000228,2]
[379311567,1755251437889,-322.5,0.000228,2]
[379311569,1755251437898,-151.0,0.00022822,7]
[379311571,1755251437908,-151.0,0.00022822,7]
[379311573,1755251437918,-151.0,0.00022822,7]
[379311575,1755251437928,-235.9,0.0002285,4]
[379311577,1755251437939,-151.0,0.000229,7]
[379311579,1755251437948,-1000.0,0.000229,2]
[379311581,1755251437958,-1000.0,0.000229,2]
[379311583,1755251437968,-546.0,0.00022913,2]
[379311585,1755251437977,-500.0,0.00022916,2]
[379311587,1755251437987,-154.65201671,0.00022916,2]
[379311589,1755251437996,-252.0939338,0.00022916,2]
[379311591,1755251438005,-460.0,0.0002292,2]
[379311593,1755251438014,-601.0,0.00022923,2]
[379311595,1755251438023,-208.0,0.0002293,2]
[379311597,1755251438032,-207.0,0.0002293,2]
[379311599,1755251438041,-460.0,0.00022951,2]
[379311601,1755251438051,-645.34216857,0.00022959,2]
[379311603,1755251438060,-633.47499148,0.00022959,2]
[379311605,1755251438069,-1001.21322098,0.00022959,2]
[379311607,1755251438078,-151.0,0.0002296,7]
[379311609,1755251438088,-151.0,0.0002296,7]
[379311611,1755251438098,-151.0,0.0002296,7]
[379311613,1755251438107,-193.116734,0.0002296,7]
[379311615,1755251438117,-151.483349,0.00022996,7]
[379311617,1755251438126,-14930.37073862,0.00022997,2]
[379311619,1755251438135,-151.0,0.00022997,7]
[379311621,1755251438145,-151.0,0.00022997,7]
[379311623,1755251438155,-152.409226,0.00022997,7]
[379311625,1755251438164,-151.0,0.00022997,7]
[379311627,1755251438174,-151.0,0.00022997,7]
[379311629,1755251438183,-151.0,0.00022997,7]
[379311631,1755251438193,-150.0,0.00023,2]
[379311633,1755251438202,-2000.71031757,0.00023,2]
[379311635,1755251438211,-301.45,0.00023,2]
[379311637,1755251438220,-5061.74435076,0.00023,2]
[379311639,1755251438230,-1341.35794119,0.00023,2]
[379311641,1755251438239,-151.0,0.00023,7]
[379311643,1755251438248,-160.0,0.00023,2]
[379311645,1755251438258,-601.0,0.00023,2]
[379311647,1755251438267,-196.0,0.00023014,7]
[379311649,1755251438278,-806.5,0.00023017,2]
[379311651,1755251438287,-235.9,0.00023033,4]
[379311653,1755251438297,-4000.0,0.00023037,4]
[379311655,1755251438307,-587.0,0.00023095,2]
[379311657,1755251438316,-150.0,0.000231,5]
[379311659,1755251438326,-800.0,0.00023138,2]
[379311661,1755251438335,-151.0,0.0002315,7]
[379311663,1755251438345,-800.0,0.00023153,2]
[379311665,1755251438355,-2192.68304261,0.0002316,2]
[379311667,1755251438364,-3123.48103905,0.0002316,2]
[379311669,1755251438374,-1500.0,0.00023163,2]
[379311671,1755251438383,-1500.0,0.00023163,2]
[379311673,1755251438393,-1500.0,0.00023163,2]
[379311675,1755251438402,-1500.0,0.00023163,2]
[379311677,1755251438412,-365.59715471,0.00023163,2]
[379311679,1755251438421,-1500.0,0.00023163,2]
[379311681,1755251438430,-208.0,0.0002317,2]
[379311683,1755251438440,-207.0,0.0002317,2]
[379311685,1755251438448,-151.0,0.00023175,7]
[379311687,1755251438458,-546.0,0.00023187,2]
[379311689,1755251438467,-800.0,0.00023197,2]
[379311691,1755251438477,-235.9,0.00023217,4]
[379311693,1755251438486,-460.0,0.00023225,2]
[379311695,1755251438495,-601.0,0.00023235,2]
[379311697,1755251438505,-151.0,0.00023239,7]
[379311699,1755251438514,-500.0,0.00023239,8]
[379311701,1755251438523,-200.0,0.0002324,6]
[379311703,1755251438532,-800.0,0.00023249,2]
[379311705,1755251438541,-1000.0,0.00023253,2]
[379311707,1755251438550,-1000.62477378,0.00023253,2]
[379311709,1755251438560,-1000.0,0.00023253,2]
[379311710,1755251438570,-1000.0,0.00023253,2]
[379311712,1755251438580,-250.0,0.00023253,2]
[379311715,1755251438591,-1000.0,0.00023253,2]
[379311716,1755251438601,-1000.0,0.00023253,2]
[379311718,1755251438611,-213.25354288,0.00023261,7]
[379311720,1755251438621,-500.0,0.00023263,8]
[379311722,1755251438631,-5000.0,0.00023289,2]
[379311724,1755251438641,-151.0,0.0002329,7]
[379311726,1755251438650,-800.0,0.00023307,2]
[379311728,1755251438660,-800.0,0.00023319,2]
[379311730,1755251438670,-806.02407646,0.00023319,2]
[379311732,1755251438679,-800.0,0.00023338,2]
[379311734,1755251438688,-151.04363807,0.00023345,14]
[379311736,1755251438697,-160.0,0.0002335,5]
[379311738,1755251438707,-193.464368,0.00023368,7]
[379311740,1755251438716,-151.0,0.00023368,7]
[379311742,1755251438726,-174.31312,0.00023368,7]
[379311744,1755251438735,-151.0,0.0002337,7]
[379311746,1755251438745,-151.0,0.0002337,7]
[379311748,1755251438755,-151.0,0.0002337,7]
[379311750,1755251438770,-208.0,0.0002339,2]
[379311752,1755251438781,-207.0,0.0002339,2]
[379311754,1755251438791,-180.195478,0.00023399,7]
[379311756,1755251438801,-156.125895,0.00023399,7]
[379311758,1755251438812,-155.108358,0.00023399,7]
[379311760,1755251438822,-155.108358,0.00023399,7]
[379311762,1755251438832,-12659.52599294,0.000234,2]
[379311764,1755251438843,-307.53,0.000234,7]
[379311766,1755251438854,-150.0,0.000234,7]
[379311768,1755251438865,-151.0,0.000234,7]
[379311770,1755251438875,-151.0,0.000234,7]
[379311772,1755251438885,-289.761437,0.000234,7]
[379311774,1755251438895,-235.9,0.000234,4]
[379311776,1755251438904,-322.5,0.000234,2]
[379311778,1755251438914,-664.75031037,0.00023408,2]
[379311780,1755251438924,-546.0,0.00023461,2]
[379311782,1755251438934,-200.0,0.00023461,20]
[379311784,1755251438945,-200.0,0.00023461,20]
[379311786,1755251438954,-200.0,0.00023461,20]
[379311788,1755251438964,-200.0,0.00023461,20]
[379311790,1755251438975,-200.0,0.00023461,20]
[379311792,1755251438984,-200.0,0.00023461,20]
[379311794,1755251438994,-200.0,0.00023461,20]
[379311796,1755251439003,-200.0,0.00023461,20]
[379311798,1755251439012,-200.0,0.00023461,20]
[379311800,1755251439022,-200.0,0.00023461,20]
[379311802,1755251439032,-350.0,0.00023461,20]
[379311804,1755251439042,-560.0,0.00023468,2]
[379311806,1755251439051,-460.0,0.00023499,2]
[379311808,1755251439061,-1000.0,0.000235,2]
[379311810,1755251439071,-843.47195277,0.000235,3]
[379311812,1755251439080,-232.08354597,0.000235,3]
[379311814,1755251439089,-14930.37073862,0.00023513,2]
[379311816,1755251439098,-601.0,0.00023546,2]
[379311818,1755251439108,-216.77912109,0.000236,3]
[379311820,1755251439117,-500.0,0.00023673,2]
[379311822,1755251439126,-3716.20488897,0.000237,30]
[379311824,1755251439135,-20463.55,0.000237,7]
[379311826,1755251439145,-151.0,0.000237,7]
[379311828,1755251439154,-151.0,0.000237,7]
[379311830,1755251439163,-14387.3969921,0.0002371,2]
[379311832,1755251439172,-2000.0,0.00023711,2]
[379311834,1755251439182,-2000.0,0.00023711,2]
[379311836,1755251439191,-2000.0,0.00023711,2]
[379311838,1755251439200,-2000.0,0.00023711,2]
[379311840,1755251439209,-2000.0,0.00023711,2]
[379311842,1755251439219,-546.0,0.00023735,2]
[379311844,1755251439228,-2820.21122627,0.00023739,2]
[379311846,1755251439238,-5836.93600769,0.00023747,2]
[379311848,1755251439249,-1759.95811403,0.0002375,5]
[379311850,1755251439259,-383.37012058,0.00023753,2]
[379311852,1755251439268,-14387.3969921,0.00023756,2]
[379311854,1755251439277,-195.611609,0.00023773,2]
[379311856,1755251439286,-310.0,0.00023778,2]
[379311858,1755251439297,-383.37012058,0.00023781,2]
[379311862,1755251439333,-2820.21122627,0.00023789,2]
[379311864,1755251439342,-5836.93600769,0.00023796,2]
[379311866,1755251439352,-160.0,0.000238,3]
[379311868,1755251439361,-160.0,0.000238,3]
[379311870,1755251439370,-160.0,0.000238,3]
[379311873,1755251439380,-160.0,0.000238,3]
[379311875,1755251439389,-215.63758983,0.000238,3]
[379311877,1755251439399,-226.21333136,0.000238,3]
[379311879,1755251439409,-501.93147384,0.00023801,2]
[379311881,1755251439419,-1500.0,0.00023801,2]
[379311883,1755251439429,-350.0,0.00023801,2]
[379311885,1755251439441,-1500.0,0.00023801,2]
[379311888,1755251439451,-1500.0,0.00023801,2]
[379311889,1755251439461,-160.0,0.00023873,3]
[379311890,1755251439470,-367.33848582,0.0002388,2]
[379311891,1755251439479,-24041.60902249,0.000239,3]
[379311892,1755251439489,-203.61015115,0.000239,2]
[379311893,1755251439498,-160.0,0.000239,3]
[379311894,1755251439507,-151.0,0.00023921,7]
[379311895,1755251439516,-151.0,0.00023921,7]
[379311896,1755251439525,-150.0,0.00023973,2]
[379311897,1755251439535,-500.0,0.00023973,2]
[379311898,1755251439543,-1017.79937379,0.00023973,2]
[379311899,1755251439552,-150.0,0.00023973,2]
[379311900,1755251439561,-151.0,0.00023973,7]
[379311901,1755251439571,-160.0,0.00024,7]
[379311902,1755251439580,-160.0,0.00024,7]
[379311903,1755251439590,-417.15472785,0.00024,7]
[379311904,1755251439599,-843.29866057,0.00024,7]
[379311905,1755251439609,-216.72950928,0.00024,7]
[379311906,1755251439618,-160.0,0.00024,7]
[379311907,1755251439627,-160.0,0.00024,7]
[379311908,1755251439636,-232.03317797,0.00024,7]
[379311909,1755251439646,-10185.45131339,0.00024,2]
[379311910,1755251439655,-1304.67683305,0.00024,60]
[379311911,1755251439664,-104842.11596522,0.00024,14]
[379311912,1755251439673,-6499.50141459,0.00024,30]
[379311913,1755251439682,-417.15472785,0.00024,7]
[379311914,1755251439692,-160.0,0.00024,7]
[379311916,1755251439702,-236.07,0.00024,7]
[379311917,1755251439712,-1000.0,0.00024,15]
[379311919,1755251439722,-160.0,0.00024,7]
[379311921,1755251439731,-160.0,0.00024,7]
[379311923,1755251439741,-1024.69407805,0.00024,7]
[379311925,1755251439752,-240.063053,0.00024,7]
[379311927,1755251439766,-151.0,0.00024,7]
[379311929,1755251439778,-151.0,0.00024,7]
[379311931,1755251439788,-151.0,0.00024,7]
[379311933,1755251439799,-1700.93253725,0.00024,2]
[379311935,1755251439809,-28501.00150991,0.00024,14]
[379311937,1755251439819,-323.25617999,0.00024,2]
[379311939,1755251439829,-151.0,0.00024,7]
[379311941,1755251439840,-151.0,0.00024,7]
[379311943,1755251439849,-199.435324,0.00024,7]
[379311945,1755251439859,-151.0,0.00024,7]
[379311947,1755251439868,-151.0,0.00024,7]
[379311949,1755251439878,-151.0,0.00024,7]
[379311951,1755251439887,-238.86517,0.00024,7]
[379311953,1755251439896,-156.125895,0.00024,2]